fUST/lending_fUST_20250626
["ID","MTS","AMOUNT","RATE_DAILY","PERIOD"]
[367617573,1750876241313,-460.0,0.00016438,2]
[367617574,1750876241322,-460.0,0.00016438,2]
[367617575,1750876241331,-460.0,0.00016438,2]
[367617576,1750876241341,-460.0,0.00016438,2]
[367617577,1750876241351,-493.9,0.00016438,2]
[367617578,1750876241361,-863.31,0.00016438,2]
[367617579,1750876241371,-460.0,0.00016438,2]
[367617580,1750876241381,-1556.07,0.00016438,2]
[367617581,1750876241390,-460.0,0.00016438,2]
[367617582,1750876241400,-1520.81,0.00016438,2]
[367617583,1750876241410,-460.0,0.00016438,2]
[367617584,1750876241420,-460.0,0.00016438,2]
[367617585,1750876241429,-1252.0,0.00016438,2]
[367617586,1750876241438,-460.0,0.00016438,2]
[367617587,1750876241448,-460.0,0.00016438,2]
[367617588,1750876241458,-460.0,0.00016438,2]
[367617589,1750876241467,-460.0,0.00016438,2]
[367617590,1750876241476,-460.0,0.00016438,2]
[367617591,1750876241486,-2061.39,0.00016438,2]
[367617592,1750876241495,-460.0,0.00016438,2]
[367617593,1750876241504,-788.32,0.00016438,2]
[367617594,1750876241513,-460.0,0.00016438,2]
[367617595,1750876241523,-1737.23,0.00016438,2]
[367617596,1750876241694,-460.0,0.00016438,2]
[367617597,1750876241704,-460.0,0.00016438,2]
[367617598,1750876241714,-460.0,0.00016438,2]
[367617599,1750876241723,-460.0,0.00016438,2]
[367617600,1750876241733,-460.0,0.00016438,2]
[367617601,1750876241743,-369.27939883,0.00016438,2]
[367617602,1750876241753,-460.0,0.00016438,2]
[367617603,1750876241762,-678.56,0.00016438,2]
[367617604,1750876241772,-460.0,0.00016438,2]
[367617605,1750876241781,-460.0,0.00016438,2]
[367617606,1750876241791,-460.0,0.00016438,2]
[367617607,1750876241800,-460.0,0.00016438,2]
[367617608,1750876241810,-218.62594825,0.00016438,2]
[367617609,1750876241822,-460.0,0.00016438,2]
[367617610,1750876241831,-460.0,0.00016438,2]
[367617611,1750876241842,-460.0,0.00016438,2]
[367617612,1750876241851,-466.59,0.00016438,2]
[367617613,1750876241860,-460.0,0.00016438,2]
[367617614,1750876241869,-2612.66,0.00016438,2]
[367617615,1750876241879,-460.0,0.00016438,2]
[367617616,1750876241888,-460.0,0.00016438,2]
[367617617,1750876241898,-460.0,0.00016438,2]
[367617618,1750876241908,-460.0,0.00016438,2]
[367617619,1750876241918,-460.0,0.00016438,2]
[367617620,1750876241928,-508.04,0.00016438,2]
[367617621,1750876241937,-460.0,0.00016438,2]
[367617622,1750876241948,-652.56,0.00016438,2]
[367617623,1750876241958,-460.0,0.00016438,2]
[367617624,1750876241967,-460.0,0.00016438,2]
[367617625,1750876241977,-955.88,0.00016438,2]
[367617626,1750876241986,-460.0,0.00016438,2]
[367617627,1750876241995,-460.0,0.00016438,2]
[367617628,1750876242006,-460.0,0.00016438,2]
[367617629,1750876242015,-460.0,0.00016438,2]
[367617630,1750876242024,-460.0,0.00016438,2]
[367617631,1750876242033,-460.0,0.00016438,2]
[367617632,1750876242043,-314.55297343,0.00016438,2]
[367617633,1750876242052,-460.0,0.00016438,2]
[367617634,1750876242063,-460.0,0.00016438,2]
[367617635,1750876242072,-500.0,0.00016438,2]
[367617636,1750876242081,-460.0,0.00016712,2]
[367617637,1750876242090,-460.0,0.00016712,2]
[367617638,1750876242100,-460.0,0.00016712,2]
[367617639,1750876242109,-460.0,0.00016712,2]
[367617640,1750876242120,-460.0,0.00016712,2]
[367617641,1750876242129,-460.0,0.00016712,2]
[367617642,1750876242139,-460.0,0.00016712,2]
[367617643,1750876242148,-460.0,0.00016712,2]
[367617644,1750876242158,-460.0,0.00016712,2]
[367617645,1750876242167,-460.0,0.00016712,2]
[367617646,1750876242176,-460.0,0.00016712,2]
[367617647,1750876242186,-460.0,0.00016712,2]
[367617648,1750876242195,-186.96,0.00016712,2]
[367617649,1750876242204,-574.54,0.00016712,2]
[367617650,1750876242214,-165.48,0.00016712,2]
[367617651,1750876242223,-460.0,0.00016712,2]
[367617652,1750876242232,-460.0,0.00016712,2]
[367617653,1750876242242,-460.0,0.00016712,2]
[367617654,1750876242251,-460.0,0.00016712,2]
[367617655,1750876242261,-460.0,0.00016712,2]
[367617656,1750876242271,-460.0,0.00016712,2]
[367617657,1750876242280,-460.0,0.00016712,2]
[367617658,1750876242290,-359.18,0.00016712,2]
[367617659,1750876242300,-255.6,0.00016712,2]
[367617660,1750876242309,-460.0,0.00016712,2]
[367617661,1750876242321,-590.4,0.00016712,2]
[367617662,1750876242330,-376.54,0.00016712,2]
[367617663,1750876242339,-460.0,0.00016712,2]
[367617664,1750876242349,-595.75,0.00016712,2]
[367617665,1750876242359,-460.0,0.00016712,2]
[367617666,1750876242368,-255.53,0.00016712,2]
[367617667,1750876242377,-460.0,0.00016712,2]
[367617668,1750876242387,-399.63,0.00016712,2]
[367617669,1750876242396,-460.0,0.00016712,2]
[367617670,1750876242406,-460.0,0.00016712,2]
[367617671,1750876242415,-460.0,0.00016712,2]
[367617672,1750876242426,-422.70303067,0.00016712,2]
[367617673,1750876242435,-460.0,0.00016712,2]
[367617674,1750876242445,-602.91,0.00016712,2]
[367617675,1750876242454,-460.0,0.00016712,2]
[367617676,1750876242463,-460.0,0.00016712,2]
[367617677,1750876242473,-671.69,0.00016712,2]
[367617678,1750876242482,-460.0,0.00016712,2]
[367617679,1750876242492,-593.06,0.00016712,2]
[367617680,1750876242501,-514.56,0.00016712,2]
[367617681,1750876242511,-460.0,0.00016712,2]
[367617682,1750876242521,-460.0,0.00016712,2]
[367617683,1750876242532,-460.0,0.00016712,2]
[367617684,1750876242541,-460.0,0.00016712,2]
[367617685,1750876242551,-460.0,0.00016712,2]
[367617686,1750876242561,-460.0,0.00016712,2]
[367617687,1750876242570,-460.0,0.00016712,2]
[367617688,1750876242579,-348.41403416,0.00016712,2]
[367617689,1750876242726,-111.58596584,0.00016712,2]
[367617690,1750876242736,-460.0,0.00016712,2]
[367617691,1750876242747,-460.0,0.00016712,2]
[367617692,1750876242757,-460.0,0.00016712,2]
[367617693,1750876242767,-460.0,0.00016712,2]
[367617694,1750876242776,-460.0,0.00016712,2]
[367617695,1750876242785,-460.0,0.00016712,2]
[367617696,1750876242795,-267.02,0.00016712,2]
[367617697,1750876242804,-517.7,0.00016712,2]
[367617698,1750876242814,-460.0,0.00016712,2]
[367617699,1750876242824,-460.0,0.00016712,2]
[367617700,1750876242833,-460.0,0.00016712,2]
[367617701,1750876242843,-179.06888312,0.00016712,2]
[367617702,1750876242852,-270.14,0.00016712,2]
[367617703,1750876242862,-460.0,0.00016712,2]
[367617704,1750876242871,-460.0,0.00016712,2]
[367617705,1750876242880,-460.0,0.00016712,2]
[367617706,1750876242889,-460.0,0.00016712,2]
[367617707,1750876242898,-460.0,0.00016712,2]
[367617708,1750876242908,-460.0,0.00016712,2]
[367617709,1750876242918,-460.0,0.00016712,2]
[367617710,1750876242927,-460.0,0.00016712,2]
[367617711,1750876242936,-293.57729921,0.00016712,2]
[367617712,1750876242946,-460.0,0.00016712,2]
[367617714,1750876242955,-460.0,0.00016712,2]
[367617716,1750876242964,-460.0,0.00016712,2]
[367617718,1750876242973,-460.0,0.00016712,2]
[367617720,1750876242982,-460.0,0.00016712,2]
[367617722,1750876242991,-350.73041935,0.00016712,2]
[367617737,1750876243221,-460.0,0.00016438,2]
[367617739,1750876243231,-460.0,0.00016438,2]
[367617741,1750876243240,-198.6,0.00016438,2]
[367617743,1750876243250,-460.0,0.00016438,2]
[367617745,1750876243259,-18.99919671,0.00016712,2]
[367617747,1750876243276,-90.27038394,0.00016712,2]
[367617748,1750876243285,-460.0,0.00016712,2]
[367617750,1750876243295,-460.0,0.00016712,2]
[367617751,1750876243304,-577.06,0.00016712,2]
[367617752,1750876243314,-460.0,0.00016712,2]
[367617754,1750876243323,-460.0,0.00016712,2]
[367617755,1750876243333,-460.0,0.00016712,2]
[367617756,1750876243342,-460.0,0.00016712,2]
[367617757,1750876243352,-460.0,0.00016712,2]
[367617758,1750876243361,-460.0,0.00016712,2]
[367617759,1750876243371,-120.01897793,0.00016712,2]
[367617760,1750876243382,-339.98102207,0.00016712,2]
[367617761,1750876243392,-460.0,0.00016712,2]
[367617763,1750876243401,-460.0,0.00016712,2]
[367617765,1750876243410,-460.0,0.00016712,2]
[367617767,1750876243420,-460.0,0.00016712,2]
[367617769,1750876243430,-460.0,0.00016712,2]
[367617770,1750876243439,-460.0,0.00016712,2]
[367617772,1750876243448,-460.0,0.00016712,2]
[367617773,1750876243457,-460.0,0.00016712,2]
[367617775,1750876243466,-397.29,0.00016712,2]
[367617776,1750876243475,-460.0,0.00016712,2]
[367617777,1750876243485,-460.0,0.00016712,2]
[367617778,1750876243494,-493.63782189,0.00016712,2]
[367617779,1750876243505,-6.36217811,0.00016712,2]
[367617780,1750876243515,-630.4,0.00016712,2]
[367617781,1750876243524,-236.72123323,0.00016712,2]
[367617782,1750876243535,-348.77876677,0.00016712,2]
[367617783,1750876243545,-195.88966442,0.00016712,2]
[367617784,1750876243781,-648.98223757,0.00016434,2]
[367617785,1750876243791,-460.0,0.00016438,2]
[367617786,1750876243800,-264.11033558,0.00016712,2]
[367617787,1750876243810,-2200.88,0.00016712,2]
[367617788,1750876243820,-265.99,0.00016712,2]
[367617789,1750876243830,-460.0,0.00016712,2]
[367617790,1750876243840,-2235.17,0.00016712,2]
[367617791,1750876243849,-3849.29,0.00016712,2]
[367617792,1750876243859,-460.0,0.00016712,2]
[367617793,1750876243868,-460.0,0.00016712,2]
[367617795,1750876243877,-602.08,0.00016712,2]
[367617797,1750876243887,-460.0,0.00016712,2]
[367617800,1750876243897,-460.0,0.00016712,2]
[367617801,1750876243906,-540.68,0.00016712,2]
[367617802,1750876243915,-460.0,0.00016712,2]
[367617803,1750876243924,-978.23,0.00016712,2]
[367617804,1750876243934,-570.35,0.00016712,2]
[367617805,1750876243943,-601.8,0.00016712,2]
[367617806,1750876243952,-925.51,0.00016712,2]
[367617807,1750876243961,-460.0,0.00016712,2]
[367617808,1750876243970,-460.0,0.00016712,2]
[367617810,1750876243979,-460.0,0.00016712,2]
[367617812,1750876243988,-460.37,0.00016712,2]
[367617814,1750876243998,-557.20707106,0.00016712,2]
[367617815,1750876244008,-460.0,0.00016712,2]
[367617816,1750876244018,-460.0,0.00016712,2]
[367617817,1750876244027,-460.0,0.00016712,2]
[367617818,1750876244036,-533.82,0.00016712,2]
[367617819,1750876244046,-460.0,0.00016712,2]
[367617820,1750876244055,-470.53,0.00016712,2]
[367617821,1750876244065,-568.46,0.00016712,2]
[367617822,1750876244074,-1931.13,0.00016712,2]
[367617823,1750876244086,-524.78,0.00016712,2]
[367617824,1750876244096,-285.09,0.00016712,2]
[367617825,1750876244106,-460.0,0.00016712,2]
[367617826,1750876244115,-460.0,0.00016712,2]
[367617827,1750876244124,-477.44,0.00016712,2]
[367617828,1750876244134,-1327.43,0.00016712,2]
[367617829,1750876244144,-1019.99,0.00016712,2]
[367617830,1750876244154,-657.60772306,0.00016712,2]
[367617831,1750876244167,-974.600025,0.00016712,2]
[367617832,1750876244185,-460.0,0.00016438,2]
[367617833,1750876244195,-869.16225194,0.00016712,2]
[367617834,1750876244205,-4078.78,0.00016712,2]
[367617835,1750876244215,-488.57,0.00016712,2]
[367617836,1750876244224,-460.0,0.00016712,2]
[367617837,1750876244234,-460.0,0.00016712,2]
[367617838,1750876244243,-460.0,0.00016712,2]
[367617839,1750876244252,-460.0,0.00016712,2]
[367617840,1750876244261,-460.0,0.00016712,2]
[367617841,1750876244271,-460.0,0.00016712,2]
[367617842,1750876244280,-460.0,0.00016712,2]
[367617843,1750876244289,-460.0,0.00016712,2]
[367617844,1750876244298,-460.0,0.00016712,2]
[367617845,1750876244307,-460.0,0.00016712,2]
[367617846,1750876244317,-2759.77,0.00016712,2]
[367617847,1750876244327,-460.0,0.00016712,2]
[367617848,1750876244336,-460.0,0.00016712,2]
[367617849,1750876244345,-493.9,0.00016712,2]
[367617850,1750876244354,-863.31,0.00016712,2]
[367617851,1750876244364,-460.0,0.00016712,2]
[367617852,1750876244373,-1556.07,0.00016712,2]
[367617853,1750876244382,-460.0,0.00016712,2]
[367617854,1750876244391,-1520.81,0.00016712,2]
[367617855,1750876244401,-460.0,0.00016712,2]
[367617856,1750876244410,-1252.0,0.00016712,2]
[367617857,1750876244420,-460.0,0.00016712,2]
[367617858,1750876244429,-460.0,0.00016712,2]
[367617859,1750876244438,-460.0,0.00016712,2]
[367617860,1750876244448,-460.0,0.00016712,2]
[367617861,1750876244457,-2061.39,0.00016712,2]
[367617862,1750876244466,-460.0,0.00016712,2]
[367617863,1750876244475,-788.32,0.00016712,2]
[367617864,1750876244484,-460.0,0.00016712,2]
[367617865,1750876244493,-1737.23,0.00016712,2]
[367617866,1750876244502,-460.0,0.00016712,2]
[367617867,1750876244511,-460.0,0.00016712,2]
[367617868,1750876244521,-460.0,0.00016712,2]
[367617869,1750876244536,-460.0,0.00016712,2]
[367617870,1750876244545,-460.0,0.00016712,2]
[367617871,1750876244554,-678.56,0.00016712,2]
[367617872,1750876244564,-460.0,0.00016712,2]
[367617873,1750876244573,-460.0,0.00016712,2]
[367617874,1750876244582,-460.0,0.00016712,2]
[367617875,1750876244591,-460.0,0.00016712,2]
[367617876,1750876244600,-460.0,0.00016712,2]
[367617877,1750876244609,-466.59,0.00016712,2]
[367617878,1750876244618,-460.0,0.00016712,2]
[367617879,1750876244628,-2612.66,0.00016712,2]
[367617880,1750876244637,-460.0,0.00016712,2]
[367617881,1750876244646,-460.0,0.00016712,2]
[367617882,1750876244656,-460.0,0.00016712,2]
[367617883,1750876244665,-652.56,0.00016712,2]
[367617884,1750876244679,-460.0,0.00016712,2]
[367617885,1750876244688,-955.88,0.00016712,2]
[367617886,1750876244698,-460.0,0.00016712,2]
[367617887,1750876244707,-460.0,0.00016712,2]
[367617888,1750876244718,-460.0,0.00016712,2]
[367617889,1750876244728,-332.69864833,0.00016712,2]
[367617890,1750876244737,-460.0,0.00016712,2]
[367617891,1750876244748,-460.0,0.00016712,2]
[367617892,1750876244759,-460.0,0.00016712,2]
[367617893,1750876244768,-460.0,0.00016712,2]
[367617894,1750876244778,-460.0,0.00016712,2]
[367617895,1750876244787,-460.0,0.00016712,2]
[367617896,1750876244798,-595.3,0.00016712,2]
[367617897,1750876244807,-564.13476161,0.00016818,2]
[367617898,1750876244817,-3617.59808953,0.000169,2]
[367617899,1750876244826,-849.4176728,0.00016944,2]
[367617900,1750876244836,-460.0,0.00016986,2]
[367617901,1750876244845,-440.0,0.00016986,2]
[367617902,1750876244855,-460.0,0.00016986,2]
[367617903,1750876244864,-460.0,0.00016986,2]
[367617904,1750876244874,-460.0,0.00016986,2]
[367617905,1750876244883,-460.0,0.00016986,2]
[367617906,1750876244893,-460.0,0.00016986,2]
[367617907,1750876244902,-460.0,0.00016986,2]
[367617908,1750876244911,-460.0,0.00016986,2]
[367617909,1750876244921,-460.0,0.00016986,2]
[367617910,1750876244931,-205.78,0.00016986,2]
[367617911,1750876244940,-460.0,0.00016986,2]
[367617912,1750876244950,-460.0,0.00016986,2]
[367617913,1750876244960,-460.0,0.00016986,2]
[367617914,1750876244970,-595.75,0.00016986,2]
[367617915,1750876244979,-460.0,0.00016986,2]
[367617916,1750876244989,-460.0,0.00016986,2]
[367617917,1750876244998,-460.0,0.00016986,2]
[367617918,1750876245008,-460.0,0.00016986,2]
[367617919,1750876245018,-460.0,0.00016986,2]
[367617920,1750876245028,-460.0,0.00016986,2]
[367617921,1750876245037,-460.0,0.00016986,2]
[367617922,1750876245046,-671.69,0.00016986,2]
[367617923,1750876245056,-460.0,0.00016986,2]
[367617924,1750876245065,-460.0,0.00016986,2]
[367617925,1750876245075,-460.0,0.00016986,2]
[367617926,1750876245084,-247.3,0.00016986,2]
[367617927,1750876245094,-159.21,0.00016986,2]
[367617928,1750876245103,-222.74,0.00016986,2]
[367617929,1750876245113,-460.0,0.00016986,2]
[367617930,1750876245123,-604.1,0.00016986,2]
[367617931,1750876245133,-460.0,0.00016986,2]
[367617932,1750876245144,-460.0,0.00016986,2]
[367617933,1750876245154,-460.0,0.00016986,2]
[367617934,1750876245163,-460.0,0.00016986,2]
[367617935,1750876245172,-288.76,0.00016986,2]
[367617936,1750876245182,-512.51,0.00016986,2]
[367617937,1750876245191,-460.0,0.00016986,2]
[367617938,1750876245200,-177.30088361,0.00016986,2]
[367617939,1750876245210,-460.0,0.00016986,2]
[367617940,1750876245219,-460.0,0.00016986,2]
[367617941,1750876245229,-460.0,0.00016986,2]
[367617942,1750876245238,-460.0,0.00016986,2]
[367617943,1750876245248,-460.0,0.00016986,2]
[367617944,1750876245257,-460.0,0.00016986,2]
[367617945,1750876245266,-460.0,0.00016986,2]
[367617946,1750876245275,-543.70753493,0.00016986,2]
[367617947,1750876245285,-460.0,0.00016986,2]
[367617948,1750876245294,-460.0,0.00016986,2]
[367617949,1750876245303,-460.0,0.00016986,2]
[367617950,1750876245312,-577.06,0.00016986,2]
[367617951,1750876245322,-460.0,0.00016986,2]
[367617952,1750876245331,-460.0,0.00016986,2]
[367617953,1750876245340,-460.0,0.00016986,2]
[367617954,1750876245350,-460.0,0.00016986,2]
[367617955,1750876245359,-395.12021099,0.00016986,2]
[367617956,1750876245368,-460.0,0.00016986,2]
[367617957,1750876245529,-460.0,0.00016986,2]
[367617958,1750876245539,-460.0,0.00016986,2]
[367617959,1750876245549,-460.0,0.00016986,2]
[367617960,1750876245558,-460.0,0.00016986,2]
[367617961,1750876245568,-223.35051143,0.00016986,2]
[367617962,1750876245577,-460.0,0.00016986,2]
[367617963,1750876245586,-460.0,0.00016986,2]
[367617964,1750876245596,-460.0,0.00016986,2]
[367617965,1750876245605,-460.0,0.00016986,2]
[367617966,1750876245615,-500.0,0.00016986,2]
[367617967,1750876245624,-630.4,0.00016986,2]
[367617968,1750876245633,-193.3,0.00016986,2]
[367617969,1750876245642,-2200.88,0.00016986,2]
[367617970,1750876245652,-2235.17,0.00016986,2]
[367617971,1750876245661,-3849.29,0.00016986,2]
[367617972,1750876245673,-460.0,0.00016986,2]
[367617973,1750876245683,-460.0,0.00016986,2]
[367617974,1750876245692,-602.08,0.00016986,2]
[367617975,1750876245701,-460.0,0.00016986,2]
[367617976,1750876245711,-460.0,0.00016986,2]
[367617977,1750876245722,-540.68,0.00016986,2]
[367617978,1750876245731,-460.0,0.00016986,2]
[367617979,1750876245740,-978.23,0.00016986,2]
[367617980,1750876245750,-570.35,0.00016986,2]
[367617981,1750876245763,-245.33,0.00016986,2]
[367617982,1750876245773,-925.51,0.00016986,2]
[367617983,1750876245782,-460.0,0.00016986,2]
[367617984,1750876245792,-460.0,0.00016986,2]
[367617985,1750876245801,-460.37,0.00016986,2]
[367617986,1750876245811,-460.0,0.00016986,2]
[367617987,1750876245823,-460.0,0.00016986,2]
[367617988,1750876245832,-460.0,0.00016986,2]
[367617989,1750876245841,-472.45,0.00016986,2]
[367617990,1750876245851,-470.53,0.00016986,2]
[367617991,1750876245860,-1931.13,0.00016986,2]
[367617992,1750876245869,-460.0,0.00016986,2]
[367617993,1750876245879,-460.0,0.00016986,2]
[367617994,1750876245888,-1327.43,0.00016986,2]
[367617995,1750876245899,-1019.99,0.00016986,2]
[367617996,1750876245908,-2501.37,0.00016986,2]
[367617997,1750876245918,-4078.78,0.00016986,2]
[367617998,1750876245927,-488.57,0.00016986,2]
[367617999,1750876245937,-428.54,0.00016986,2]
[367618000,1750876245947,-386.66,0.00016986,2]
[367618001,1750876245955,-460.0,0.00016986,2]
[367618002,1750876245964,-189.86,0.00016986,2]
[367618003,1750876245973,-460.0,0.00016986,2]
[367618004,1750876245983,-460.0,0.00016986,2]
[367618006,1750876245992,-460.0,0.00016986,2]
[367618007,1750876246001,-460.0,0.00016986,2]
[367618008,1750876246011,-460.0,0.00016986,2]
[367618009,1750876246020,-2759.77,0.00016986,2]
[367618010,1750876246030,-460.0,0.00016986,2]
[367618011,1750876246040,-460.0,0.00016986,2]
[367618013,1750876246049,-493.9,0.00016986,2]
[367618015,1750876246059,-863.31,0.00016986,2]
[367618016,1750876246070,-460.0,0.00016986,2]
[367618017,1750876246080,-1556.07,0.00016986,2]
[367618018,1750876246089,-460.0,0.00016986,2]
[367618019,1750876246099,-1520.81,0.00016986,2]
[367618021,1750876246109,-1252.0,0.00016986,2]
[367618022,1750876246119,-460.0,0.00016986,2]
[367618023,1750876246128,-216.96,0.00016986,2]
[367618024,1750876246138,-597.92,0.00016986,2]
[367618025,1750876246147,-460.0,0.00016986,2]
[367618026,1750876246157,-2061.39,0.00016986,2]
[367618027,1750876246166,-788.32,0.00016986,2]
[367618028,1750876246176,-460.0,0.00016986,2]
[367618029,1750876246186,-1737.23,0.00016986,2]
[367618030,1750876246195,-391.16,0.00016986,2]
[367618031,1750876246204,-460.0,0.00016986,2]
[367618032,1750876246214,-460.0,0.00016986,2]
[367618033,1750876246224,-460.0,0.00016986,2]
[367618034,1750876246234,-678.56,0.00016986,2]
[367618035,1750876246243,-460.0,0.00016986,2]
[367618036,1750876246253,-460.0,0.00016986,2]
[367618037,1750876246264,-460.0,0.00016986,2]
[367618038,1750876246274,-460.0,0.00016986,2]
[367618039,1750876246283,-460.0,0.00016986,2]
[367618040,1750876246294,-466.59,0.00016986,2]
[367618041,1750876246303,-460.0,0.00016986,2]
[367618042,1750876246313,-2612.66,0.00016986,2]
[367618043,1750876246322,-272.83760827,0.00016986,2]
[367618044,1750876246332,-460.0,0.00016986,2]
[367618045,1750876246341,-357.18156744,0.00016986,2]
[367618046,1750876246351,-652.56,0.00016986,2]
[367618047,1750876246361,-955.88,0.00016986,2]
[367618048,1750876246370,-477.88,0.00016986,2]
[367618049,1750876246380,-460.0,0.00016986,2]
[367618050,1750876246389,-460.0,0.00016986,2]
[367618051,1750876246399,-460.0,0.00016986,2]
[367618052,1750876246408,-460.0,0.00016986,2]
[367618053,1750876246417,-460.0,0.00016986,2]
[367618054,1750876246426,-460.0,0.00016986,2]
[367618055,1750876246435,-460.0,0.00016986,2]
[367618056,1750876246444,-5000.0,0.00017,2]
[367618057,1750876246454,-207.4,0.00017,2]
[367618058,1750876246463,-151.0,0.0001709,2]
[367618059,1750876246473,-500.0,0.00017109,2]
[367618060,1750876246482,-500.0,0.00017109,2]
[367618061,1750876246491,-515.97466061,0.00017109,2]
[367618062,1750876246500,-390.20006425,0.00017109,2]
[367618063,1750876246509,-500.0,0.00017109,2]
[367618064,1750876246518,-500.0,0.00017109,2]
[367618065,1750876246528,-500.0,0.00017109,2]
[367618066,1750876246537,-500.0,0.00017113,2]
[367618067,1750876246547,-500.0,0.00017113,2]
[367618068,1750876246556,-500.0,0.00017117,2]
[367618069,1750876246567,-500.0,0.00017117,2]
[367618070,1750876246576,-500.0,0.00017119,2]
[367618071,1750876246585,-500.0,0.00017133,2]
[367618072,1750876246595,-483.08343318,0.00017164,2]
[367618073,1750876246604,-3617.59808927,0.00017176,2]
[367618074,1750876246614,-500.0,0.00017183,2]
[367618075,1750876246623,-151.0,0.00017185,2]
[367618076,1750876246632,-151.0,0.00017206,2]
[367618077,1750876246641,-425.18553072,0.00017221,2]
[367618078,1750876246651,-160.0,0.00017221,2]
[367618079,1750876246661,-160.0,0.00017221,2]
[367618080,1750876246671,-12558.06783089,0.00017221,2]
[367618081,1750876246684,-160.0,0.00017221,2]
[367618082,1750876246694,-160.0,0.00017221,2]
[367618083,1750876246704,-230.22714675,0.00017221,2]
[367618084,1750876246715,-836.86812089,0.00017221,2]
[367618085,1750876246724,-160.0,0.00017221,2]
[367618086,1750876246734,-160.0,0.00017221,2]
[367618087,1750876246743,-846.80634355,0.00017221,2]
[367618088,1750876246753,-213.69531788,0.00017221,2]
[367618089,1750876246762,-500.0,0.00017231,2]
[367618090,1750876246772,-500.0,0.00017231,2]
[367618091,1750876246781,-500.0,0.00017231,2]
[367618092,1750876246791,-986.73762301,0.00017257,2]
[367618094,1750876246801,-298.82,0.0001726,2]
[367618097,1750876246811,-294.74,0.0001726,2]
[367618098,1750876246822,-460.0,0.0001726,2]
[367618100,1750876246831,-460.0,0.0001726,2]
[367618101,1750876246841,-495.25,0.0001726,2]
[367618102,1750876246851,-460.0,0.0001726,2]
[367618103,1750876246861,-325.7,0.0001726,2]
[367618104,1750876246870,-460.0,0.0001726,2]
[367618105,1750876246879,-150.52,0.0001726,2]
[367618106,1750876246889,-595.75,0.0001726,2]
[367618107,1750876246898,-460.0,0.0001726,2]
[367618108,1750876246907,-460.0,0.0001726,2]
[367618109,1750876246917,-321.62,0.0001726,2]
[367618110,1750876246926,-233.9,0.0001726,2]
[367618111,1750876246935,-349.1,0.0001726,2]
[367618112,1750876246946,-671.69,0.0001726,2]
[367618113,1750876246956,-230.01,0.0001726,2]
[367618114,1750876246966,-460.0,0.0001726,2]
[367618115,1750876246976,-460.0,0.0001726,2]
[367618116,1750876246985,-460.0,0.0001726,2]
[367618117,1750876246995,-460.0,0.0001726,2]
[367618118,1750876247004,-460.0,0.0001726,2]
[367618119,1750876247014,-460.0,0.0001726,2]